Cogmind - Beta 15 @@@ ROGUE MODE // 2025.07.17 @ 17:17:53 Player: D.J. Result: Destroyed self via exploding Fusion Modulator Performance ------------- Evolutions (1) 500 Regions Visited (2) 400 Robots Destroyed (18) 90 Value Destroyed (416) 416 Prototype IDs (0) 0 Alien Tech Used (0) 0 Bonus (0) 0 TOTAL SCORE: 1406 Bonus ------- None Cogmind --------- Core Integrity 0/400 Matter 252/300 Energy 10/100 System Corruption 0% Temperature Cool (12) Movement Core (200) Ox3 Location -9/Materials Parts ------- > --- POWER (1) -------- (None) > --- PROPULSION (2) --- Improved Hover Unit > --- UTILITY (4) ------ Small Storage Unit Signal Interpreter Light Armor Plating > --- WEAPON (2) ------- EMP Blaster > --- INVENTORY (8) ---- Improved Heat Sink Small Laser Datajack Flail Flail Peak State ------------ > --- POWER ------------ Light Ion Engine > --- PROPULSION ------- Light Treads Light Treads > --- UTILITY ---------- Small Storage Unit Signal Interpreter > --- WEAPON ----------- Assault Rifle Assault Rifle > --- INVENTORY -------- Small Laser [Rating: 7] Favorites ----------- Power Light Ion Engine Engine Light Ion Engine Propulsion Light Treads Treads Light Treads Hover Unit Improved Hover Unit Utility Small Storage Unit Storage Small Storage Unit Processor Signal Interpreter Protection Light Armor Plating Weapon Assault Rifle Ballistic Gun Assault Rifle Launcher EMP Blaster Impact Weapon Flail Build | -11 -10 -9 ------- Run | Yrd Mat Mat Slots Evolved 2 | . . 2 Power . | . . . Propulsion . | . . . Utility 2 | . . 2 Weapon . | . . . Parts Attached 11 | 6 1 4 Power 1 | 1 . . Engine 1 | 1 . . Core . | . . . Reactor . | . . . Propulsion 3 | 2 . 1 Treads 2 | 2 . . Leg . | . . . Wheel . | . . . Hover 1 | . . 1 Flight . | . . . Utility 3 | 1 1 1 Device . | . . . Storage 1 | 1 . . Processor 1 | . 1 . Hackware . | . . . Protection 1 | . . 1 Artifact . | . . . Weapon 4 | 2 . 2 Energy Gun . | . . . Energy Cannon . | . . . Ballistic Gun 2 | 2 . . Ballistic Cannon . | . . . Launcher 1 | . . 1 Special Weapon . | . . . Impact Weapon 1 | . . 1 Slashing Weapon . | . . . Piercing Weapon . | . . . Special Melee Weapon . | . . . Unidentified Prototypes . | . . . Parts Lost 5 | . . 5 Power 1 | . . 1 Propulsion 2 | . . 2 Utility . | . . . Weapon 2 | . . 2 Highest Loss Streak 5 | . . 5 To Critical Strikes . | . . . Average Backups 2 | . 1 3 Power . | . . . Propulsion . | . . . Utility . | . . 1 Weapon 1 | . 1 1 Tool/Special . | . . . Unused Backups 4 | . . 4 Power . | . . . Propulsion . | . . . Utility 1 | . . 1 Weapon 2 | . . 2 Tool/Special 1 | . . 1 Average Slot Usage (%) 84 | . 97 51 Engine 10 | . 14 3 Treads 22 | . 28 7 Storage 13 | . 14 11 Processor 11 | . 11 11 Protection 1 | . . 3 Ballistic Gun 22 | . 28 7 Impact Weapon 2 | . . 7 Peak Build Rating 7 | 6 7 7 Average Rating 6 | 4 6 5 On Entrance 4 | . 6 7 Naked Turns . | . . . Heaviest Build 12 | 12 12 12 Greatest Support 40 | 40 40 40 Greatest Overweight (x) 3 | 2 . 3 Average Overweight (x) . | . . 1 Largest Inventory Capacity 8 | 8 8 8 Average Capacity 7 | 7 8 8 Most Carried 6 | 3 3 6 Average Carried 2 | . 1 3 Final Capacity 8 | 8 8 8 Final Carried 5 | 1 3 5 Class Distribution -------------------- 100% | Mutant Dominant Class ---------------- Mutant | -10/Materials Mutant | -9/Materials Resources | -11 -10 -9 ----------- Run | Yrd Mat Mat Matter Collected 427 | 151 164 112 Remotely . | . . . Salvage Created 460 | . 252 208 Parts 38 | . 24 14 Haulers Intercepted . | . . . Recyclers Shooed . | . . . Parts Field Recycled . | . . . Retrieved Matter . | . . . Parts Self-Destructed . | . . . Prevented . | . . . Kills | -11 -10 -9 ------- Run | Yrd Mat Mat Combat Hostiles Destroyed 16 | . 7 9 Melee 2 | . . 2 Guns 9 | . 7 2 AOE 4 | . . 4 Classes Destroyed 5 | . 4 1 Operator 1 | . 1 . Watcher 1 | . 1 . Swarmer 9 | . 3 6 Grunt 6 | . 4 2 Duelist 1 | . . 1 Best Kill Streak 3 | . 3 3 Combat Bots Only 3 | . 3 3 Max Kills in Single Turn 2 | . 2 2 Gunslinging 1 | . 1 . Exploded 2 | . . 2 Melee 1 | . . 1 Uniques/NPCs Destroyed . | . . . Combat | -11 -10 -9 -------- Run | Yrd Mat Mat Hostile Shots Fired 157 | . 40 117 Missed 45 | . 8 37 Hits 112 | . 32 80 Melee 4 | . . 4 Projectile 108 | . 32 76 Critical Strikes 1 | . . 1 Damage Taken 1227 | . 341 886 Core 449 | . 42 407 Absorbed by Shields . | . . . Core Remaining (%) 91 | 100 83 . Volleys Fired 32 | . 23 9 Largest 2 | . 2 2 Hottest 40 | . 40 40 Shots Fired 59 | . 46 13 Gun 56 | . 46 10 Cannon . | . . . Launcher 3 | . . 3 Special . | . . . Kinetic 56 | . 46 10 Thermal . | . . . Explosive . | . . . Electromagnetic 3 | . . 3 Robot Hit Streak 10 | . 10 4 Robot Miss Streak 3 | . 3 2 Penetration Max . | . . . Secondary Targets 2 | . 1 1 Max Gunslinging Chain 1 | . 1 1 Shots Hit Robots 46 | . 31 15 Core Hits 23 | . 13 10 Critical Kills 1 | . . 1 Critical Parts Destroyed 2 | . . 2 Critical Strikes 3 | . . 3 Smash 3 | . . 3 Melee Attacks 18 | . . 18 Impact 18 | . . 18 Slashing . | . . . Piercing . | . . . Sneak Attacks . | . . . Combat Hostiles . | . . . Follow-up Attacks . | . . . Damage Inflicted 1024 | . 404 620 Guns 514 | . 404 110 Cannons . | . . . Explosions 249 | . . 249 Melee 261 | . . 261 Ramming . | . . . Kinetic 514 | . 404 110 Thermal 100 | . . 100 Explosive . | . . . Electromagnetic 149 | . . 149 Impact 261 | . . 261 Slashing . | . . . Piercing . | . . . Highest Corruption . | . . . Average Corruption . | . . . Corruption Purged . | . . . Corruption Blocked . | . . . Overload Shots . | . . . Overflow Damage 115 | . . 115 Projectiles . | . . . Explosions 20 | . . 20 Melee 95 | . . 95 Knockbacks 1 | . . 1 Impact 1 | . . 1 Kinetic . | . . . Secondary . | . . . Self-Inflicted Damage 102 | . . 102 Shots 3 | . . 3 Rammed . | . . . Targets Rammed . | . . . Kicked . | . . . Crushed . | . . . Highest Temperature 8 | . 8 . Average Temperature 2 | . 2 . Received Heat Transfer 219 | . 129 90 Siege Activations . | . . . Martial Activations . | . . . Shielding Activations . | . . . Robots Disrupted . | . . . Combat Hostiles . | . . . Robots Corrupted 1 | . . 1 Combat Hostiles 1 | . . 1 Parts Fried 2 | . . 2 Impact Corruptions 4 | . . 4 Robots Melted . | . . . Combat Hostiles . | . . . Parts Melted . | . . . Heat Transferred 50 | . . 50 Parts Sabotaged . | . . . Parts Stolen . | . . . Parts Stripped . | . . . Power Chain Reactions . | . . . Alert | -11 -10 -9 ------- Run | Yrd Mat Mat Maximum Alert Level . | . . . Low Security (%) 100 | 100 100 100 Level 1 . | . . . Level 2 . | . . . Level 3 . | . . . Level 4 . | . . . Level 5 . | . . . High Security . | . . . Max Security . | . . . Peak Influence 120 | . 91 120 Initial 21 | . . 21 Average 35 | . 30 56 Influence Increases 474 | . 197 277 Destroy 0b10 Robot/C 320 | . 140 180 Destroy 0b10 Robot/NC 10 | . 10 . Destroy Leader 52 | . 32 20 Disable Machine 45 | . . 45 Destroy Structure 17 | . . 17 Partial Spotted 15 | . 15 . Lose Combat Pursuer 15 | . . 15 Influence Decreases 327 | . 146 181 Entered New Map 30 | . . 30 Time Decay 267 | . 146 121 Lost Part 30 | . . 30 Squads Dispatched 1 | . 1 . Investigation . | . . . Extermination . | . . . Reinforcement 1 | . 1 . Assault . | . . . Garrison . | . . . Intercept . | . . . Searches Triggered . | . . . Construction Impeded . | . . . Haulers Reinforced . | . . . Active Scanning Responses . | . . . Cargo Convoy Interrupts . | . . . Stealth | -11 -10 -9 --------- Run | Yrd Mat Mat Distress Signals 2 | . 1 1 Communications Jammed . | . . . Distress Signals . | . . . Times Spotted 23 | . 10 13 Peak Tracking Total 7 | . 4 7 Tactical Retreats 1 | . . 1 Traps | -11 -10 -9 ------- Run | Yrd Mat Mat Traps Triggered . | . . . Indirectly . | . . . Trap Hack Attempts . | . . . Triggered . | . . . Disarmed . | . . . Reprogrammed . | . . . Reused . | . . . Traps Extracted . | . . . Installed . | . . . Triggered . | . . . Machines | -11 -10 -9 ---------- Run | Yrd Mat Mat Machines Disabled 3 | . . 3 Max in Single Turn 2 | . . 2 Machines Repaired . | . . . Machines Dismantled . | . . . Machines Sabotaged . | . . . Overloaded Fab Kills . | . . . Hacking | -11 -10 -9 --------- Run | Yrd Mat Mat Machines Accessed 1 | . 1 . Terminals 1 | . 1 . Fabricators . | . . . Repair Stations . | . . . Recycling Units . | . . . Scanalyzers . | . . . Garrison Access . | . . . Total Hacks 1 | . 1 . Successful 1 | . 1 . Failed . | . . . Catastrophic . | . . . Database Lockouts . | . . . Manual . | . . . Terminals 1 | . 1 . Fabricators . | . . . Repair Stations . | . . . Recycling Units . | . . . Scanalyzers . | . . . Garrison Access . | . . . Terminal Hacks 1 | . 1 . Zone Layout 1 | . 1 . Fabricator Hacks . | . . . Repair Station Hacks . | . . . Recycling Unit Hacks . | . . . Scanalyzer . | . . . Garrison Access Hacks . | . . . Unauthorized Hacks . | . . . Terminals . | . . . Fabricators . | . . . Repair Stations . | . . . Recycling Units . | . . . Scanalyzers . | . . . Garrison Access . | . . . Data Cores Recovered . | . . . Used . | . . . Hacking Detections . | . . . Full Trace Events . | . . . Feedback Events . | . . . Feedback Blocked . | . . . Robot Schematics Acquired . | . . . Robots Built . | . . . Authchips . | . . . Time . | . . . Total Robot Build Rating . | . . . Part Schematics Acquired . | . . . Parts Built . | . . . Authchips . | . . . Time . | . . . Total Part Build Rating . | . . . Parts Repaired . | . . . Time . | . . . Parts Recycled . | . . . Recycled Matter . | . . . Retrieved Matter . | . . . Retrieved Components . | . . . Parts Scanalyzed . | . . . Part Schematics Acquired . | . . . Parts Damaged . | . . . Bothacking | -11 -10 -9 ------------ Run | Yrd Mat Mat Used RIF Installer . | . . . Robots Hacked . | . . . Non-combat . | . . . Combat . | . . . Robot Hacks Applied . | . . . Relay Couplers Released . | . . . Fabnet Peak Effective % . | . . . Robots Rewired . | . . . Allies Hacked . | . . . Hacks Repelled . | . . . Allies | -11 -10 -9 -------- Run | Yrd Mat Mat Total Allies . | . . . Largest Group . | . . . Highest-Rated Group . | . . . Highest-Rated Ally . | . . . Total Orders . | . . . Ally Attacks . | . . . Total Damage . | . . . Kills . | . . . Allies Corrupted . | . . . Allies Melted . | . . . Intel | -11 -10 -9 ------- Run | Yrd Mat Mat Active Infowar (turns) . | . . . Robot Analysis Total . | . . . Derelict Logs Recovered . | . . . Drone Launches . | . . . Drone Recoveries . | . . . Exploration | -11 -10 -9 ------------- Run | Yrd Mat Mat Turns Passed 1068 | 50 733 285 Spaces Moved 541 | 27 397 117 Core 80 | 9 . 71 Treads 461 | 18 397 46 Legs . | . . . Wheels . | . . . Hover . | . . . Flight . | . . . Fastest Speed 50 | 50 160 150 Average Speed 162 | 141 160 177 Slowest Speed 200 | 160 160 200 Overloaded Moves . | . . . Propulsion Burnouts . | . . . Robots Hopped . | . . . Potential Cave-ins . | . . . Cave-ins Triggered . | . . . Exploration Rate (%) 23 | 3 58 10 Regions Visited 2 Branch Regions . Pre-discovered Areas . | . . . Known Exits Taken 1 | . 1 . Unknown Exits Taken 1 | 1 . . Scrap Searched . | . . . Spaces Dug . | . . . Terrain Destroyed 24 | . . 24 Melee . | . . . Projectile . | . . . AOE 24 | . . 24 Terrain Rammed . | . . . Walls Destroyed . | . . . Machines Disabled . | . . . Actions | -11 -10 -9 --------- Run | Yrd Mat Mat Total 644 | 39 449 156 Wait 26 | . 26 . Move 539 | 26 396 117 Hop . | . . . Pick Up 16 | 7 3 6 Fast Attach . | . . . Attach 12 | 6 1 5 Detach 1 | . . 1 Swap . | . . . Drop . | . . . Fire 32 | . 23 9 Melee 18 | . . 18 Ram . | . . . Kick . | . . . Crush . | . . . Escape Stasis . | . . . Rewire . | . . . Trap . | . . . Miscellaneous . | . . . Route ------- -11/Scrapyard -10/Materials (discovered 3 exits: *Mat x2 / [*Min]) -9/Materials History --------- Turn | Location | Event 12 | -11/Scrapyard | Discovered new exit (range 16) 51 | -11/Scrapyard | Entered Materials 66 | -10/Materials | Discovered new exit (range 16) 252 | -10/Materials | Discovered new exit (range 15) 310 | -10/Materials | Build established: Mutant 508 | -10/Materials | Discovered new exit (range 10) 573 | -10/Materials | Identified exit to Materials 784 | -10/Materials | Entered another Materials area 784 | -9/Materials | Evolved 2 slots: Utility x2 908 | -9/Materials | Lost 5 parts (1p2n2w) 923 | -9/Materials | Core integrity fell below 50% 1064 | -9/Materials | Core integrity fell below 20% 1069 | -9/Materials | Destroyed self via exploding Fusion Modulator Last Messages --------------- 00938_ Imp. Ion Engine fried. 00939_ Acquired 51 matter. 00942_ Acquired EMP Blaster. 00943_ S-10 Pest suffers critical hit (Smash). 00943_ Destroyed Lgt. Ion Engine. 00943_ S-10 Pest system corrupted by crushing effect. 00943_ S-10 Pest destroyed. 00947_ Acquired 10 matter. 00953_ Acquired Flail. 00962_ Acquired Lgt. Armor Plating. 00964_ Acquired 12 matter. 01048_ W-16 Scout sends out distress signal. 01066_ Acquired Imp. Hover Unit. 01069_ S-10 Pest destroyed. 01069_ Fusion Modulator explodes. 01069_ S-10 Pest destroyed. 01069_ Destroyed Lgt. Assault Rifle. 01069_ Destroyed Lgt. Ion Engine. 01069_ Fusion Modulator explodes. Map ----- +----------------------------------------------------+ | | | | | | | | | | | | | | | | | | | | | | | | | | | | | | | | | | | | | | | | | ?????????????????????????????????????????????????? | | ??????????????????????##########?????????????????? | | ??????????######??????# #?????????????????? | | ??????????# ?????# #?????????????????? | | ??????????# "?????# #?????????????????? | | ??????????# ""????# @ ;?????????????????? | | ??????????# """#??# ; #??????????????? | | ??????????# #??# ; #??????????????? | | ??????????# """#??# ; ##??????????????? | | ??????????# """#??# [ ; #??????????????? | | ??????????? """#??# s ;;;###????????????? | | ????????????? ????###;;;;;;; #????????????? | | ???????????####+########## ; / #????????????? | | ???????????# ; / #????????????? | | ???????????# =/ #????????????? | | ???????????# # #########????? | | ???????????##### ####### # / #????? | | ???????????????# ######## ## =w ####### #????? | | ???????????????# # # ## [[#?????###????? | | ???????????????# + """ # ##=**%#????????????? | | ???????????????# # R" # ###/#/#????????????? | | ???????????????# # """ # %[ #???????????? | | ???????????????# #? # +???????????? | | ???????????????# #?""" # #???????????? | | ???????????????# #??"" #######+####???????????? | | ???????????????# #??"" #?????? ??????????????? | | ???????????????# #??? #?????? ??????????????? | | ???????????????# #????? #??????""??????????????? | | ???????????????# #??????????????"??????????????? | | ???????????????# #?????????????????????????????? | +----------------------------------------------------+ Best States ------------- Heat Dissipation 28 Energy Generation 10 Energy Capacity 125 Matter Stores 276 Matter Capacity 300 Sight Range 16 Terrain Scan Density 10 Armor Coverage 150 Evasion (%) 40 Recoil Reduction 2 Item Schematics ----------------- None Robot Schematics ------------------ None Fabricated ------------ Nothing Repaired ---------- Nothing Alien Tech Used ----------------- None Achievements -------------- None Challenges ------------ None Game ------ Seed ShadingThrowingLeg Manual? 0 Play Time 00:12:20 Cumulative 6.6 hours Start 2025.07.17 @ 01:46:37 End 2025.07.17 @ 17:17:53 Sessions 1 Manual Loads 0 Difficulty Rogue Special Mode None Game No. 19 Rogue 19 Adventurer 0 Explorer 0 Win Type - Total 0 Types 0/0/0/0/0/0/0/0/0/0 Lore% 7 Gallery% 10 Achievement% 10 Wizard Run 0 Options --------- Layout 2 ASCII 0 Keyboard 1 Movement Numpad Keybinds 0 Fullscreen 1 Font 24/Swanston Map View 25x22 Zoom Use 41% Tactical HUD 1 Map Filters NONE Filters NONE Steam 1 RUN: cb8dd9f9-8583-403f-bc61-bc206475e299